bitfinex/quotes_ETHUSD_20250123
["timestamp","ask_amount","ask_price","bid_price","bid_amount"]
[1737641057681,6.81383808,3231.1,3230.5,3.90402]
[1737641057801,3.71883808,3231.1,3230.5,3.90402]
[1737641058004,0.62391808,3231.1,3230.5,3.90402]
[1737641058532,3.71889808,3231.1,3230.5,3.90402]
[1737641059105,0.8052,3231.4,3230.5,4.6324362]
[1737641059318,3.0,3231.3,3230.7,3.09525]
[1737641060033,3.0,3231.3,3230.7,3.09521]
[1737641060592,6.09474,3231.3,3230.7,3.09521]
[1737641061239,3.09485,3231.2,3230.5,0.8086]
[1737641061456,3.0952,3230.9,3230.5,0.8086]
[1737641061670,3.09527,3230.8,3230.5,0.8086]
[1737641061960,3.09527,3230.8,3230.2,0.8086]
[1737641062457,3.09527,3230.8,3229.9,3.09604]
[1737641062458,3.09579,3230.2,3229.9,0.8086]
[1737641062664,3.09579,3230.2,3229.7,0.47523588]
[1737641062951,3.09569,3230.3,3229.7,3.53427059]
[1737641063252,3.09555,3230.5,3229.7,3.53427059]
[1737641063458,3.09555,3230.5,3229.7,3.53425059]
[1737641063459,3.09564,3230.4,3229.7,3.53425059]
[1737641063752,0.8052,3230.7,3229.7,0.43802059]
[1737641063956,3.09588,3230.1,3229.6,0.8086]
[1737641064971,3.09625,3229.8,3229.2,0.8274]
[1737641065253,3.09655,3229.4,3228.8,0.8274]
[1737641066214,3.09655,3229.4,3228.9,0.28459313]
[1737641066441,3.09665,3229.3,3228.9,0.28459313]
[1737641067520,3.09693,3229.0,3228.9,0.28459313]
[1737641068025,3.09722,3228.7,3228.6,0.28459313]
[1737641068554,3.09704,3228.9,3228.6,0.28459313]
[1737641068978,3.09713,3228.8,3228.6,0.28459313]
[1737641069563,3.09713,3228.8,3228.4,3.18359701]
[1737641070015,3.85996,3229.0,3228.4,3.18359701]
[1737641070368,0.63135004,3228.9,3228.4,3.18359701]
[1737641071159,3.09648,3229.5,3228.5,0.7999]
[1737641071347,0.61059622,3229.4,3228.9,3.09702]
[1737641071516,0.61059622,3229.4,3228.8,3.09711]
[1737641071920,0.61059622,3229.4,3228.9,3.09701]
[1737641072429,3.09691,3229.1,3228.5,0.7999]
[1737641072647,3.09703,3228.9,3228.2,3.89258]
[1737641073075,6.19381,3229.1,3228.3,3.09758]
[1737641073246,3.09694,3229.0,3228.3,3.09758]
[1737641073447,3.09694,3229.0,3228.2,0.7949]
[1737641073642,3.09721,3228.8,3228.2,0.7949]
[1737641073843,3.09718,3228.8,3228.2,0.7949]
[1737641074049,3.89662,3228.6,3227.9,0.7949]
[1737641074574,0.7993,3228.6,3228.0,3.09786]
[1737641074742,3.0,3228.7,3228.1,3.09773]
[1737641076594,0.62459731,3228.8,3227.9,0.7949]
[1737641076756,0.62459731,3228.8,3228.5,3.09741]
[1737641077097,0.62459731,3228.8,3228.6,3.89597]
[1737641077651,0.62459731,3228.8,3228.6,0.7987]
[1737641078197,0.25,3230.6,3228.6,0.7987]
[1737641078198,0.775,3229.5,3228.8,3.0971]
[1737641078408,3.8715,3229.5,3228.8,3.09706]
[1737641078562,0.62170611,3229.4,3228.8,3.09706]
[1737641078896,0.62170611,3229.4,3229.0,3.09689]
[1737641079267,3.09621,3229.8,3229.0,0.619395]
[1737641079473,0.775,3229.9,3229.3,3.09657]
[1737641079676,3.09588,3230.1,3229.3,3.09657]
[1737641080004,3.0,3229.9,3229.3,3.09657]
[1737641080734,3.0,3230.0,3229.3,3.09657]
[1737641080889,3.09607,3229.9,3229.3,3.09657]
[1737641081531,3.71635089,3229.9,3229.3,3.09657]
[1737641082219,3.0,3230.0,3229.3,3.795343]
[1737641082403,3.09598,3230.0,3229.4,3.8503]
[1737641083588,3.89157,3230.4,3229.7,3.09622]
[1737641083933,3.71131153,3230.6,3229.9,3.09606]
[1737641084232,3.0,3230.5,3230.0,3.0959]
[1737641084388,3.09542,3230.6,3230.0,3.0959]
[1737641084748,3.09542,3230.6,3229.9,3.09606]
[1737641085181,3.0,3230.5,3230.0,3.09591]
[1737641085827,3.61830703,3230.7,3230.0,3.09591]
[1737641086016,3.09541,3230.6,3230.0,3.09591]
[1737641086731,3.09525,3230.8,3230.2,3.09572]
[1737641086932,3.09525,3230.8,3230.1,0.8272]
[1737641087241,3.0954,3230.6,3230.1,0.8272]
[1737641089484,3.70061241,3230.8,3230.1,3.92306]
[1737641089644,6.79589241,3230.8,3230.1,3.92306]
[1737641089971,3.8077,3230.6,3229.7,0.769]
[1737641090156,3.09599,3230.0,3229.7,0.769]
[1737641090548,3.09592,3230.1,3229.4,3.89958]
[1737641090861,3.09598,3230.0,3229.4,3.89958]
[1737641091185,3.09618,3229.8,3229.4,0.8031]
[1737641091616,3.90009,3230.0,3229.4,0.8031]
[1737641092105,4.51984754,3230.0,3229.4,0.8031]
[1737641092816,3.09628,3229.7,3229.1,3.87122]
[1737641093161,3.09653,3229.5,3228.8,0.7744]
[1737641093401,3.0966,3229.4,3228.8,0.7744]
[1737641093764,3.0966,3229.4,3228.8,3.87146]
[1737641094592,3.09674,3229.2,3228.8,0.7744]
[1737641094891,3.09674,3229.2,3228.5,0.8216]
[1737641094892,3.09699,3229.0,3228.5,0.8216]
[1737641095364,3.09699,3229.0,3228.3,3.09754]
[1737641096033,3.09699,3229.0,3228.4,3.09746]
[1737641096533,3.09699,3229.0,3228.3,3.09754]
[1737641097730,3.0971,3228.9,3228.2,3.87849]
[1737641098033,3.09713,3228.8,3228.2,3.87849]
[1737641098382,0.55,3229.2,3228.2,3.87849]
[1737641098383,3.0,3229.2,3228.7,3.09722]
[1737641098689,6.0968,3229.2,3228.5,3.09741]
[1737641099026,3.09695,3229.0,3228.3,3.09756]
[1737641099246,3.09695,3229.0,3228.4,3.09747]
[1737641100128,6.0968,3229.2,3228.5,3.09731]
[1737641100440,6.0968,3229.2,3228.5,6.504381]
[1737641100740,3.0,3229.3,3228.9,3.09696]
[1737641100894,3.09647,3229.5,3228.9,3.09696]
[1737641101092,6.09657,3229.4,3228.8,0.8102]
[1737641101595,3.86879,3229.6,3228.5,0.309731]
[1737641101596,3.09676,3229.2,3228.5,0.309731]
[1737641101795,3.09702,3229.0,3228.4,0.7972]
[1737641101996,3.09713,3228.8,3228.2,3.795305]
[1737641102201,3.09702,3229.0,3228.2,3.795305]
[1737641102395,3.0967,3229.3,3228.5,3.09735]
[1737641102396,6.09675,3229.2,3228.5,3.09735]
[1737641102712,0.7887,3229.4,3228.7,3.09719]
[1737641103053,0.7887,3229.4,3228.2,0.697625]
[1737641103054,0.7649,3230.0,3229.0,0.7602]
[1737641103197,3.86063,3230.3,3229.3,0.7602]
[1737641103396,4.47107439,3230.3,3229.4,3.09655]
[1737641103642,4.47107439,3230.3,3229.6,3.0963]
[1737641104023,6.09585,3230.2,3229.4,3.09655]
[1737641104202,6.09585,3230.2,3229.4,6.19302]
[1737641104599,0.7649,3230.7,3229.4,0.98738632]
[1737641104941,3.86,3231.0,3230.3,6.99049]
[1737641105125,3.09516,3230.9,3230.3,3.89482]
[1737641105492,0.7649,3231.0,3230.3,0.7992]
[1737641105739,3.0,3230.9,3230.3,0.7992]
[1737641106038,3.09524,3230.8,3230.3,0.7992]
[1737641107039,3.09512,3230.9,3230.3,3.89487]
[1737641107247,3.0949,3231.2,3230.3,1.498274]
[1737641107518,3.09495,3231.1,3230.5,3.09542]
[1737641107751,3.09495,3231.1,3230.3,6.99046]
[1737641107956,3.09495,3231.1,3230.4,3.09558]
[1737641108116,3.09507,3231.0,3230.3,0.7992]
[1737641108319,3.09527,3230.8,3230.3,0.7992]
[1737641108621,3.09531,3230.7,3230.1,3.09583]
[1737641108817,3.09531,3230.7,3230.1,3.796766]
[1737641109164,3.09565,3230.4,3229.7,3.09619]
[1737641109315,3.09565,3230.4,3229.7,6.19239]
[1737641109521,3.09565,3230.4,3229.7,3.09619]
[1737641109852,3.09565,3230.4,3229.6,0.7614]
[1737641109853,6.19132,3230.4,3229.6,3.85768]
[1737641110062,3.0958,3230.2,3229.6,3.85768]
[1737641110263,6.19166,3230.2,3229.6,0.7614]
[1737641110556,3.0958,3230.2,3229.4,3.09647]
[1737641110863,3.09596,3230.1,3229.4,3.09646]
[1737641111655,3.0958,3230.2,3229.4,3.09646]
[1737641111857,3.09599,3230.0,3229.4,3.09646]
[1737641112460,3.09619,3229.8,3229.2,3.8853]
[1737641112759,3.09599,3230.0,3229.3,3.09663]
[1737641113147,3.09607,3229.9,3229.3,3.09663]
[1737641113342,3.09596,3230.1,3229.4,3.09646]
[1737641113544,3.09582,3230.2,3229.3,3.794813]
[1737641113728,3.09582,3230.2,3229.4,3.09655]
[1737641114027,3.09582,3230.2,3229.5,3.09642]
[1737641114565,3.09589,3230.1,3229.5,3.09642]
[1737641114737,3.09582,3230.2,3229.5,3.09642]
[1737641115063,3.09588,3230.1,3229.5,3.09642]
[1737641115244,0.7904,3230.6,3230.0,3.09592]
[1737641115457,3.09545,3230.6,3230.0,3.09592]
[1737641115766,3.0,3230.7,3229.9,3.09605]
[1737641115937,3.09545,3230.6,3229.9,3.09605]
[1737641116354,3.09545,3230.6,3230.0,3.09597]
[1737641117226,3.0956,3230.4,3229.8,3.09612]
[1737641117529,3.09609,3229.9,3229.3,0.7662]
[1737641117937,6.19223,3229.9,3229.3,0.7662]
[1737641118139,3.09609,3229.9,3229.3,0.7662]
[1737641118334,3.09592,3230.1,3229.3,0.7662]
[1737641118535,3.09578,3230.2,3229.6,3.09629]
[1737641118762,3.0,3230.5,3229.8,3.09609]
[1737641118992,3.0,3230.5,3229.9,0.8296]
[1737641119868,6.0955,3230.5,3229.9,0.8296]
[1737641120072,3.0955,3230.5,3229.9,0.8296]
[1737641120376,3.09544,3230.6,3229.9,4.318229]
[1737641121323,3.09544,3230.6,3230.0,3.09591]
[1737641121522,0.79,3231.0,3230.3,3.09563]
[1737641121838,3.09497,3231.1,3230.4,3.09553]
[1737641122039,3.09509,3231.0,3230.2,3.09573]
[1737641122359,3.09527,3230.8,3230.1,0.796]
[1737641122521,3.0954,3230.6,3230.1,0.796]
[1737641123033,3.09532,3230.7,3230.1,3.89186]
[1737641123752,3.09532,3230.7,3230.1,4.590647]
[1737641123949,3.0,3230.8,3230.1,4.590577]
[1737641124466,3.09493,3231.1,3230.5,3.09541]
[1737641125361,3.6086714,3231.4,3230.7,3.09524]
[1737641125858,0.6086714,3231.4,3230.6,0.7991]
[1737641126033,3.09483,3231.2,3230.6,3.89449]
[1737641126849,6.7033614,3231.4,3230.7,3.09525]
[1737641127870,3.09461,3231.5,3230.7,3.09525]
[1737641128226,3.09461,3231.5,3230.7,3.09521]
[1737641128428,3.09461,3231.5,3230.9,3.09504]
[1737641128837,3.09408,3232.0,3231.1,3.09488]
[1737641128838,3.0942,3231.9,3231.1,3.09488]
[1737641129055,3.0942,3231.9,3231.0,0.7732]
[1737641129056,3.09426,3231.8,3231.2,3.481578]
[1737641130142,3.09435,3231.7,3231.2,0.386808]
[1737641130356,3.09426,3231.8,3231.2,0.386808]
[1737641130557,3.09426,3231.8,3231.2,3.481608]
[1737641133031,3.2496,3232.1,3231.3,0.3481608]
[1737641133181,6.34357,3232.1,3231.5,3.09453]
[1737641133552,6.34357,3232.1,3231.4,0.7629]
[1737641133758,6.96596417,3232.1,3231.4,0.7629]
[1737641133958,6.96596417,3232.1,3231.5,3.0945]
[1737641134153,0.2496,3232.1,3231.8,3.09423]
[1737641134361,0.2496,3232.1,3232.0,0.7743]
[1737641134982,3.09412,3232.0,3231.5,0.7743]
[1737641135167,0.2496,3232.1,3231.5,0.7743]
[1737641135481,3.09445,3231.6,3231.2,9.6443]
[1737641135982,3.09445,3231.6,3231.2,8.87]
[1737641136185,6.18859,3231.8,3231.2,8.87]
[1737641136489,3.09425,3231.8,3231.2,13.470805]
[1737641136686,3.09439,3231.7,3231.2,8.87]
[1737641137460,3.09439,3231.7,3231.1,3.0949]
[1737641137694,3.09463,3231.5,3230.9,0.7743]
[1737641138204,3.09478,3231.3,3230.9,0.7743]
[1737641138504,3.09463,3231.5,3230.9,0.7743]
[1737641138505,6.18925,3231.5,3230.9,0.7743]
[1737641138858,3.09464,3231.4,3230.9,0.7743]
[1737641139174,6.18924,3231.5,3230.9,0.7743]
[1737641139765,3.09445,3231.6,3231.0,3.09501]
[1737641140598,3.09454,3231.5,3230.9,0.7743]
[1737641140972,3.09465,3231.4,3230.9,0.7743]
[1737641143199,3.09446,3231.6,3230.9,3.86937]
[1737641143401,3.09446,3231.6,3230.9,4.256307]
[1737641143561,6.18898,3231.6,3230.9,4.256307]
[1737641143763,3.09461,3231.5,3230.9,3.86937]
[1737641144591,3.09446,3231.6,3230.1,0.7935]
[1737641144592,3.09527,3230.8,3230.1,0.7935]
[1737641144795,3.91681,3230.8,3230.1,0.7935]
[1737641145030,3.09546,3230.6,3230.1,0.7935]
[1737641145234,3.09559,3230.4,3230.1,0.7935]
[1737641145531,3.09559,3230.4,3229.9,0.47523588]
[1737641145738,6.09532,3230.7,3229.9,0.43649059]
[1737641145895,3.0954,3230.6,3230.0,3.09591]
[1737641146238,3.0954,3230.6,3229.9,3.09601]
[1737641146416,3.0955,3230.5,3229.9,3.09601]
[1737641146791,3.0954,3230.6,3229.9,3.09601]
[1737641147130,3.60749775,3230.7,3230.1,3.0958]
[1737641147431,3.09505,3231.0,3230.5,0.7954]
[1737641147730,0.61046961,3230.9,3230.5,0.7954]
[1737641148028,3.09456,3231.5,3230.7,3.09521]
[1737641148029,3.0946,3231.5,3230.7,3.09521]
[1737641148335,3.09473,3231.3,3230.7,3.09521]
[1737641148834,3.70581875,3231.3,3230.5,3.89089]
[1737641149032,3.09511,3231.0,3230.5,0.7954]
[1737641149405,0.61108875,3231.3,3230.5,0.7954]
[1737641149406,3.70583875,3231.3,3230.7,3.09523]
[1737641149607,3.32136231,3231.4,3230.8,3.09517]
[1737641149798,6.41599231,3231.4,3230.8,3.09517]
[1737641150733,3.09475,3231.3,3230.6,3.09534]
[1737641151334,6.41601231,3231.4,3230.7,3.09529]
[1737641151631,6.41601231,3231.4,3230.7,3.09524]
[1737641151839,6.41601231,3231.4,3230.8,3.09517]
[1737641152743,0.32136231,3231.4,3231.0,3.09495]
[1737641153101,0.32136231,3231.4,3231.1,0.7624]
[1737641153338,0.32136231,3231.4,3231.3,3.09472]
[1737641154554,0.32136231,3231.4,3231.1,3.85731]
[1737641154708,0.32136231,3231.4,3231.3,3.09472]
[1737641155347,0.32136231,3231.4,3231.2,0.385731]
[1737641156133,0.32136231,3231.4,3230.9,3.09507]
[1737641156134,0.32136231,3231.4,3230.9,3.09504]
[1737641156449,0.32136231,3231.4,3231.3,0.8137]
[1737641156649,0.32136231,3231.4,3231.3,3.90842]
[1737641157055,0.2496,3232.1,3231.3,0.8137]
[1737641157260,0.2496,3232.1,3231.8,0.8137]
[1737641157463,0.2496,3232.1,3231.8,3.90793]
[1737641157824,0.2496,3232.1,3231.8,0.8137]
[1737641159558,0.2496,3232.1,3231.8,3.9079]
[1737641159762,0.2496,3232.1,3231.8,0.8137]
[1737641160143,0.2496,3232.1,3231.8,1.204495]
[1737641160722,0.2496,3232.1,3231.5,3.0945]
[1737641161064,3.34358,3232.1,3231.5,3.0945]
[1737641162374,3.09419,3231.9,3231.1,3.9123]
[1737641162669,3.0944,3231.7,3231.1,3.91224]
[1737641163027,3.0944,3231.7,3231.1,3.09484]
[1737641164565,3.0944,3231.7,3231.1,4.600832]
[1737641165870,3.63293214,3231.8,3231.1,4.600832]
[1737641166027,0.7834,3232.0,3231.3,3.09464]
[1737641166360,0.2496,3232.1,3231.8,3.09423]
[1737641166567,0.32265122,3231.9,3231.8,3.403653]
[1737641166765,0.32265122,3231.9,3231.8,4.173253]
[1737641166971,0.32265122,3231.9,3231.8,1.079023]
[1737641167136,0.32265122,3231.9,3231.3,3.09469]
[1737641167473,3.41681122,3231.9,3231.3,3.09469]
[1737641168572,0.32265122,3231.9,3231.4,3.09457]
[1737641168777,0.32265122,3231.9,3231.5,3.09446]
[1737641168937,0.32265122,3231.9,3231.7,3.09426]
[1737641169137,0.32265122,3231.9,3231.8,4.221776]
[1737641169351,0.2496,3232.1,3231.9,3.09413]
[1737641169551,0.2496,3232.1,3232.0,3.09405]
[1737641169752,0.2496,3232.1,3231.8,0.8181]
[1737641169991,0.2496,3232.1,3231.5,11.96448]
[1737641170290,0.2496,3232.1,3231.7,3.09427]
[1737641170457,0.2496,3232.1,3231.9,3.09412]
[1737641171048,0.2496,3232.1,3231.9,6.18821]
[1737641171279,0.2496,3232.1,3231.9,3.09409]
[1737641171857,0.2496,3232.1,3231.7,3.0943]
[1737641173905,0.2496,3232.1,3231.5,4.372768]
[1737641174552,0.2496,3232.1,3231.6,3.09435]
[1737641175412,0.2496,3232.1,3231.6,3.55239224]
[1737641175604,0.7603,3232.0,3231.6,3.55239224]
[1737641175795,3.09418,3231.9,3231.3,3.09469]
[1737641175951,6.18842,3231.9,3231.3,3.09469]
[1737641176158,3.09426,3231.8,3231.1,6.9435]
[1737641176373,3.09444,3231.6,3231.1,0.7538]
[1737641176611,3.09444,3231.6,3230.9,3.09505]
[1737641176903,3.0,3231.8,3231.1,3.09485]
[1737641177055,3.85437,3232.0,3231.4,3.09457]
[1737641177252,3.2496,3232.1,3231.6,3.09439]
[1737641177916,3.34356,3232.1,3231.4,6.95431]
[1737641178152,3.09412,3232.0,3231.4,3.85974]
[1737641178298,3.09412,3232.0,3231.4,3.09454]
[1737641178498,3.09417,3231.9,3231.2,3.09479]
[1737641178680,3.34362,3232.1,3231.5,3.09445]
[1737641178865,0.2496,3232.1,3231.6,3.09442]
[1737641179068,0.2496,3232.1,3231.3,3.487249]
[1737641179391,0.2496,3232.1,3231.5,3.09448]
[1737641179565,0.2496,3232.1,3231.6,3.09442]
[1737641179766,0.2496,3232.1,3231.6,3.71331]
[1737641179968,0.2496,3232.1,3231.7,3.09432]
[1737641180368,0.2496,3232.1,3231.7,6.18859]
[1737641180606,0.2496,3232.1,3231.7,3.09427]
[1737641180978,0.2496,3232.1,3231.9,3.09409]
[1737641181288,0.2496,3232.1,3232.0,3.09405]
[1737641182633,0.2496,3232.1,3232.0,3.20436878]
[1737641184428,0.2496,3232.1,3232.0,7.03446878]
[1737641184624,0.2496,3232.1,3232.0,15.90446878]
[1737641184933,3.09225,3233.9,3232.4,3.09367]
[1737641185112,3.09225,3233.9,3233.3,3.09273]
[1737641185639,0.61389226,3233.8,3233.3,3.09273]
[1737641186633,0.61389226,3233.8,3233.4,3.0927]
[1737641186834,0.61389226,3233.8,3233.3,3.09273]
[1737641187829,0.61389226,3233.8,3233.0,0.8301]
[1737641188039,3.09272,3233.4,3232.4,4.80112588]
[1737641188205,3.09291,3233.2,3232.4,4.00982588]
[1737641188404,3.0931,3233.1,3232.4,4.00982588]
[1737641188618,3.09291,3233.2,3232.5,3.09352]
[1737641188832,6.18591,3233.2,3232.5,3.09352]
[1737641189031,3.09291,3233.2,3232.4,3.53459]
[1737641189335,0.8195,3232.9,3232.5,3.09354]
[1737641190136,0.8195,3232.9,3232.6,3.09347]
[1737641190334,0.7607,3233.3,3232.5,0.40097759]
[1737641190498,1.38102144,3233.3,3232.8,3.0932]
[1737641191108,3.0,3233.5,3233.1,3.09292]
[1737641191410,3.09235,3233.8,3233.1,3.09292]
[1737641191411,3.09243,3233.7,3233.1,3.09299]
[1737641191599,0.60541195,3233.8,3233.3,3.09279]
[1737641192503,3.09225,3233.9,3233.3,3.09279]
[1737641193209,3.09234,3233.8,3233.1,3.402229]
[1737641193622,3.09234,3233.8,3233.2,3.09284]
[1737641194238,0.8253,3234.3,3233.8,3.0923]
[1737641194647,0.8253,3234.3,3234.1,3.09204]
[1737641194809,0.7813,3234.6,3234.1,3.09204]
[1737641195840,3.87293,3234.6,3233.9,3.0922]
[1737641196144,0.7813,3234.6,3234.1,3.09204]
[1737641197241,0.61817011,3234.8,3234.1,3.09204]
[1737641197448,0.61817011,3234.8,3234.3,3.09184]
[1737641197753,0.7652,3235.3,3234.7,3.09147]
[1737641198051,3.7652,3235.3,3234.7,3.09147]
[1737641198256,3.7652,3235.3,3234.5,3.09159]
[1737641198558,0.61755132,3235.0,3234.4,3.09174]
[1737641198850,0.61755132,3235.0,3234.5,3.09165]
[1737641199015,3.7652,3235.3,3234.3,0.804]
[1737641199219,3.7652,3235.3,3234.6,3.09149]
[1737641199444,6.8561,3235.3,3234.6,3.09149]
[1737641199755,6.8561,3235.3,3234.7,3.09147]
[1737641200116,3.7652,3235.3,3234.4,3.09173]
[1737641200354,3.7652,3235.3,3234.6,3.09151]
[1737641200516,3.09114,3235.1,3234.4,3.09173]
[1737641201134,3.09126,3235.0,3234.4,3.09173]
[1737641201466,3.09126,3235.0,3234.3,3.8958]
[1737641201769,3.09126,3235.0,3234.4,3.09169]
[1737641202340,3.09101,3235.2,3234.4,3.09169]
[1737641202545,3.09117,3235.1,3234.5,3.09163]
[1737641203056,0.7652,3235.3,3234.3,0.804]
[1737641203262,3.09114,3235.1,3234.5,3.09164]
[1737641203844,3.09119,3235.0,3234.3,3.8958]
[1737641204045,3.09119,3235.0,3234.3,3.89577]
[1737641204452,3.09133,3234.9,3234.3,3.89577]
[1737641205270,3.09114,3235.1,3234.3,3.89577]
[1737641205440,3.0912,3235.0,3234.4,3.09175]
[1737641205645,3.0912,3235.0,3234.3,3.89577]
[1737641205846,3.09114,3235.1,3234.3,3.89577]
[1737641206047,3.0913,3234.9,3234.3,3.89577]
[1737641209034,3.0913,3234.9,3234.4,3.09174]
[1737641209236,3.0913,3234.9,3234.3,3.89577]
[1737641209450,3.09145,3234.8,3234.3,0.804]
[1737641209781,3.09153,3234.7,3234.3,0.804]
[1737641212281,1.80293882,3234.7,3234.3,0.804]
[1737641212487,3.0913,3234.9,3234.3,0.804]
[1737641212854,0.55,3235.2,3234.0,0.7817]
[1737641213043,3.09176,3234.4,3233.8,3.09225]
[1737641214483,3.09176,3234.4,3233.8,6.18453]
[1737641214686,3.09176,3234.4,3233.8,3.788873]
[1737641215589,3.09176,3234.4,3233.9,3.09223]
[1737641215890,3.89049,3234.5,3233.9,3.09217]
[1737641217655,6.98223,3234.5,3233.9,3.09217]
[1737641218095,3.89049,3234.5,3233.9,3.09217]
[1737641218297,3.89049,3234.5,3233.9,0.6881193]
[1737641218605,3.41373221,3235.1,3234.6,3.09156]
[1737641218762,0.32255221,3235.1,3234.6,3.09156]
[1737641218942,3.84585,3235.2,3234.6,3.09156]
[1737641219344,3.09114,3235.1,3234.6,3.09156]
[1737641219578,3.09121,3235.0,3234.3,3.86154]
[1737641219778,3.09142,3234.8,3234.0,3.09213]
[1737641219989,3.09157,3234.6,3234.0,4.52747091]
[1737641220189,3.09173,3234.5,3234.0,1.43540091]
[1737641220518,3.09176,3234.4,3234.0,0.7866]
[1737641221026,3.90587,3234.6,3234.0,3.87874]
[1737641221207,6.99753,3234.6,3234.0,3.87867]
[1737641221409,3.90587,3234.6,3234.0,0.7866]
[1737641221610,0.8143,3234.6,3234.0,0.7866]
[1737641221828,3.09166,3234.5,3233.8,3.51325]
[1737641222248,3.09186,3234.3,3233.8,3.51325]
[1737641222539,3.09176,3234.4,3233.9,3.09219]
[1737641223529,3.09187,3234.3,3233.7,3.91867]
[1737641223824,3.09187,3234.3,3233.8,3.09229]
[1737641223992,3.09168,3234.5,3233.9,3.09221]
[1737641224200,3.09179,3234.4,3233.8,6.18456]
[1737641224403,3.09179,3234.4,3233.8,3.84087959]
[1737641226635,3.09179,3234.4,3233.8,6.93314959]
[1737641226836,3.09179,3234.4,3233.8,3.84087959]
[1737641227130,3.90595,3234.6,3234.0,3.09206]
[1737641227519,0.8143,3234.6,3234.0,3.09206]
[1737641227831,3.09157,3234.7,3234.3,0.8164]
[1737641228003,3.09156,3234.7,3234.3,0.8164]
[1737641229018,3.09154,3234.7,3234.3,0.8164]
[1737641229333,3.09162,3234.6,3234.0,3.85396]
[1737641231097,3.09162,3234.6,3234.0,6.94604]
[1737641231297,3.09162,3234.6,3234.0,1.79609191]
[1737641231627,3.09153,3234.7,3234.2,3.09191]
[1737641231929,3.0913,3234.9,3234.4,3.09169]
[1737641232229,0.60413747,3235.0,3234.6,0.7828]
[1737641232718,3.09111,3235.1,3234.6,3.87436]
[1737641232922,3.09119,3235.0,3234.6,0.7828]
[1737641233290,3.90107,3235.5,3234.8,3.09133]
[1737641233595,3.09091,3235.3,3234.8,3.09133]
[1737641234422,3.09099,3235.2,3234.7,3.09147]
[1737641234900,3.09091,3235.3,3234.6,4.48154843]
[1737641235108,3.09091,3235.3,3234.8,3.09135]
[1737641235291,6.18188,3235.3,3234.8,3.09135]
[1737641235489,3.09091,3235.3,3234.6,4.48152843]
[1737641235813,3.09066,3235.6,3234.9,3.09126]
[1737641236013,3.09066,3235.6,3235.0,3.89051]
[1737641236326,6.18135,3235.6,3235.0,3.89051]
[1737641236527,3.09066,3235.6,3235.1,3.09108]
[1737641236710,3.09066,3235.6,3235.0,3.89054]
[1737641236916,3.09066,3235.6,3235.1,3.78927]
[1737641237630,3.09066,3235.6,3235.1,0.69818]
[1737641237631,3.09071,3235.5,3235.1,0.69818]
[1737641237831,3.09081,3235.4,3235.0,0.7994]
[1737641238190,3.09109,3235.1,3234.7,0.7994]
[1737641238591,3.87522,3235.3,3234.7,0.7994]
[1737641238829,3.09092,3235.3,3234.7,3.89081]
[1737641239128,3.09067,3235.6,3235.1,3.09103]
[1737641239432,3.09052,3235.7,3235.2,3.09099]
[1737641239644,3.09052,3235.7,3235.1,3.400133]
[1737641239838,3.09052,3235.7,3235.2,0.8227]
[1737641240395,6.18113,3235.7,3235.2,0.8227]
[1737641240594,3.09062,3235.6,3235.2,0.8227]
[1737641242633,3.89999,3236.1,3235.2,1.2449903]
[1737641242840,3.89999,3236.1,3235.5,3.09066]
[1737641243332,3.09024,3236.0,3235.5,3.09066]
[1737641244193,3.09033,3235.9,3235.3,3.09083]
[1737641244398,3.09033,3235.9,3235.2,0.8227]
[1737641244623,3.89999,3236.1,3235.4,3.09075]
[1737641244830,6.99021,3236.1,3235.5,0.309075]
[1737641244999,3.89999,3236.1,3235.5,3.399725]
[1737641245195,3.08978,3236.5,3235.6,0.7923]
[1737641245424,3.0896,3236.7,3236.1,0.7923]
[1737641245624,3.08952,3236.8,3236.1,6.97245]
[1737641245831,6.17921,3236.7,3236.1,4.579585]
[1737641246044,3.08967,3236.6,3236.1,4.579585]
[1737641246638,3.08977,3236.5,3236.1,1.489545]
[1737641247038,3.08957,3236.7,3236.1,4.579625]
[1737641247201,3.08966,3236.6,3236.1,4.579625]
[1737641247400,3.87063,3236.9,3236.3,3.08994]
[1737641247613,6.1787,3237.0,3236.4,3.0898]
[1737641247916,3.70027713,3236.9,3236.4,3.0898]
[1737641248335,0.61088713,3236.9,3236.2,3.5479825]
[1737641248724,0.61088713,3236.9,3236.4,3.08984]
[1737641249031,3.70026713,3236.9,3236.5,0.308984]
[1737641249555,0.32265675,3237.2,3236.6,3.8462]
[1737641249743,3.41176675,3237.2,3236.7,3.08951]
[1737641249947,3.08903,3237.3,3236.7,3.08951]
[1737641250309,3.08912,3237.2,3236.7,3.08951]
[1737641250513,3.08922,3237.1,3236.7,0.4155094]
[1737641250914,3.08948,3236.8,3236.6,0.7566]
[1737641251841,6.17903,3236.8,3236.3,0.7616]
[1737641252151,3.08979,3236.5,3236.2,0.4579625]
[1737641252333,3.08979,3236.5,3236.1,0.7616]
[1737641252537,3.08987,3236.4,3236.1,0.7616]
[1737641253171,3.08979,3236.5,3236.1,0.7616]
[1737641253403,3.08985,3236.4,3236.1,0.7616]
[1737641253607,3.0896,3236.7,3236.1,0.7616]
[1737641253755,3.08969,3236.6,3236.1,0.7616]
[1737641254054,3.08969,3236.6,3236.1,1.146786]
[1737641255070,3.0896,3236.7,3236.1,1.146786]
[1737641255401,3.08975,3236.5,3236.1,1.146786]
[1737641256374,0.62200689,3236.8,3236.4,3.08977]
[1737641256580,0.62200689,3236.8,3236.5,3.08972]